fUST/lending_fUST_20250527
["ID","MTS","AMOUNT","RATE_DAILY","PERIOD"]
[362465201,1748317839221,-430.0,0.00019664,2]
[362465202,1748317839230,-430.0,0.00019664,2]
[362465203,1748317839240,-430.0,0.00019664,2]
[362465204,1748317839249,-483.14331154,0.00019664,2]
[362465205,1748317839258,-430.0,0.00019664,2]
[362465206,1748317839268,-369.53613733,0.00019664,2]
[362465207,1748317839277,-500.0,0.00019664,2]
[362465208,1748317839286,-474.3542191,0.00019664,2]
[362465209,1748317839296,-430.0,0.00019664,2]
[362465210,1748317839305,-430.0,0.00019664,2]
[362465211,1748317839314,-430.0,0.00019664,2]
[362465212,1748317839323,-422.9818722,0.00019664,2]
[362465213,1748317839333,-209.31324895,0.00019664,2]
[362465214,1748317839343,-430.0,0.00019664,2]
[362465215,1748317839351,-430.0,0.00019664,2]
[362465216,1748317839360,-430.0,0.00019664,2]
[362465217,1748317839370,-215.82,0.00019664,2]
[362465218,1748317839380,-430.0,0.00019664,2]
[362465219,1748317839390,-430.0,0.00019664,2]
[362465220,1748317839523,-425.0,0.00019664,2]
[362465221,1748317839534,-430.0,0.00019664,2]
[362465222,1748317839544,-430.0,0.00019664,2]
[362465223,1748317839555,-481.34448504,0.00019664,2]
[362465224,1748317839564,-430.0,0.00019664,2]
[362465225,1748317839573,-430.0,0.00019664,2]
[362465226,1748317839583,-477.8481705,0.00019664,2]
[362465227,1748317839592,-430.0,0.00019664,2]
[362465228,1748317839602,-430.0,0.00019664,2]
[362465229,1748317839611,-430.0,0.00019664,2]
[362465230,1748317839621,-430.0,0.00019664,2]
[362465231,1748317839631,-441.14156027,0.00019664,2]
[362465232,1748317839641,-430.0,0.00019664,2]
[362465233,1748317839651,-430.0,0.00019664,2]
[362465234,1748317839660,-430.0,0.00019664,2]
[362465235,1748317839670,-430.0,0.00019664,2]
[362465236,1748317839680,-430.0,0.00019664,2]
[362465237,1748317839689,-430.0,0.00019664,2]
[362465238,1748317839698,-332.51900637,0.00019664,2]
[362465239,1748317839707,-336.36575674,0.00019664,2]
[362465240,1748317839717,-430.0,0.00019664,2]
[362465241,1748317839726,-430.0,0.00019664,2]
[362465242,1748317839736,-430.0,0.00019664,2]
[362465243,1748317839746,-715.92,0.00019664,2]
[362465244,1748317839756,-430.0,0.00019669,2]
[362465245,1748317839766,-436.18303345,0.00019669,2]
[362465246,1748317839776,-430.0,0.00019669,2]
[362465247,1748317839786,-500.0,0.00019854,2]
[362465248,1748317839798,-507.73599367,0.00019874,2]
[362465249,1748317839809,-430.0,0.00019935,2]
[362465250,1748317839818,-430.0,0.00019936,2]
[362465251,1748317839827,-1232.65,0.00019936,2]
[362465252,1748317839838,-430.0,0.00019936,2]
[362465253,1748317839847,-430.0,0.00019936,2]
[362465254,1748317839857,-543.64,0.00019936,2]
[362465255,1748317839867,-430.0,0.00019936,2]
[362465256,1748317839877,-430.0,0.00019936,2]
[362465257,1748317839888,-289.29,0.00019936,2]
[362465258,1748317839898,-430.0,0.00019936,2]
[362465259,1748317839908,-322.91,0.00019936,2]
[362465260,1748317839917,-693.34,0.00019936,2]
[362465261,1748317839927,-849.46,0.00019936,2]
[362465262,1748317839938,-457.2650657,0.00019937,2]
[362465263,1748317839947,-258.18,0.00019937,2]
[362465264,1748317839957,-430.0,0.00019937,2]
[362465265,1748317839967,-430.0,0.00019937,2]
[362465266,1748317839977,-430.0,0.00019937,2]
[362465267,1748317839987,-430.0,0.00019937,2]
[362465268,1748317839996,-430.0,0.00019937,2]
[362465269,1748317840006,-430.0,0.00019937,2]
[362465270,1748317840016,-441.27121487,0.00019937,2]
[362465271,1748317840026,-430.0,0.00019937,2]
[362465272,1748317840036,-430.0,0.00019937,2]
[362465273,1748317840045,-430.0,0.00019937,2]
[362465274,1748317840055,-430.0,0.00019937,2]
[362465275,1748317840065,-436.22542399,0.00019937,2]
[362465276,1748317840074,-430.0,0.00019937,2]
[362465278,1748317840087,-430.0,0.00019937,2]
[362465280,1748317840097,-430.0,0.00019937,2]
[362465282,1748317840107,-430.0,0.00019937,2]
[362465284,1748317840117,-430.0,0.00019937,2]
[362465286,1748317840127,-430.0,0.00019937,2]
[362465288,1748317840136,-430.0,0.00019937,2]
[362465290,1748317840146,-540.75,0.00019937,2]
[362465292,1748317840156,-457.29,0.00019937,2]
[362465293,1748317840166,-245.6,0.00019937,2]
[362465296,1748317840177,-328.16,0.00019937,2]
[362465298,1748317840187,-201.88,0.00019937,2]
[362465300,1748317840198,-430.0,0.00019937,2]
[362465302,1748317840208,-430.0,0.00019937,2]
[362465304,1748317840218,-430.0,0.00019937,2]
[362465306,1748317840228,-430.0,0.00019937,2]
[362465308,1748317840239,-430.0,0.00019937,2]
[362465310,1748317840250,-430.0,0.00019937,2]
[362465312,1748317840259,-430.0,0.00019937,2]
[362465315,1748317840268,-430.0,0.00019937,2]
[362465318,1748317840279,-430.0,0.00019937,2]
[362465320,1748317840289,-169.0,0.00019937,2]
[362465321,1748317840299,-430.0,0.00019937,2]
[362465322,1748317840309,-430.0,0.00019937,2]
[362465323,1748317840320,-430.0,0.00019937,2]
[362465324,1748317840329,-304.22,0.00019937,2]
[362465326,1748317840339,-430.0,0.00019937,2]
[362465328,1748317840348,-430.0,0.00019937,2]
[362465330,1748317840359,-430.0,0.00019937,2]
[362465333,1748317840369,-430.0,0.00019937,2]
[362465335,1748317840378,-319.17,0.00019937,2]
[362465337,1748317840388,-522.48,0.00019937,2]
[362465339,1748317840398,-430.0,0.00019938,2]
[362465341,1748317840408,-436.34,0.00019938,2]
[362465343,1748317840417,-488.95,0.00019938,2]
[362465345,1748317840428,-457.48,0.00019938,2]
[362465347,1748317840438,-430.0,0.00019938,2]
[362465349,1748317840447,-173.22,0.00019938,2]
[362465351,1748317840457,-466.72,0.00019938,2]
[362465353,1748317840467,-430.0,0.00019938,2]
[362465355,1748317840476,-427.24,0.00019938,2]
[362465357,1748317840486,-430.0,0.00019938,2]
[362465359,1748317840496,-430.0,0.00019938,2]
[362465361,1748317840505,-430.0,0.00019938,2]
[362465363,1748317840515,-430.0,0.00019938,2]
[362465365,1748317840525,-430.0,0.00019938,2]
[362465367,1748317840535,-430.0,0.00019938,2]
[362465369,1748317840545,-430.0,0.00019938,2]
[362465371,1748317840555,-409.41407832,0.00019938,2]
[362465373,1748317840564,-542.38,0.00019938,2]
[362465375,1748317840574,-163.56008272,0.00019938,2]
[362465377,1748317840583,-430.0,0.00019938,2]
[362465379,1748317840592,-430.0,0.00019938,2]
[362465381,1748317840602,-455.7,0.00019938,2]
[362465383,1748317840611,-430.0,0.00019938,2]
[362465385,1748317840620,-430.0,0.00019938,2]
[362465387,1748317840629,-430.0,0.00019938,2]
[362465388,1748317840639,-430.0,0.00019938,2]
[362465389,1748317840649,-448.9,0.00019938,2]
[362465390,1748317840659,-430.0,0.00019938,2]
[362465391,1748317840668,-430.0,0.00019938,2]
[362465392,1748317840679,-430.0,0.00019938,2]
[362465393,1748317840688,-430.0,0.00019938,2]
[362465394,1748317840698,-430.0,0.00019938,2]
[362465395,1748317840708,-500.0,0.00019938,2]
[362465396,1748317840719,-458.29222238,0.00019938,2]
[362465397,1748317840728,-501.22688919,0.00019938,2]
[362465399,1748317840739,-430.0,0.00019938,2]
[362465400,1748317840748,-322.88,0.00019938,2]
[362465401,1748317840758,-430.0,0.00019938,2]
[362465402,1748317840768,-208.57,0.00019938,2]
[362465403,1748317840778,-430.0,0.00019938,2]
[362465404,1748317840787,-524.09,0.00019938,2]
[362465405,1748317840797,-430.0,0.00019938,2]
[362465406,1748317840807,-202.86,0.00019938,2]
[362465407,1748317840816,-501.09436803,0.00019938,2]
[362465408,1748317840826,-430.0,0.00019938,2]
[362465409,1748317840835,-430.0,0.00019938,2]
[362465410,1748317840846,-430.0,0.00019938,2]
[362465411,1748317840855,-715.92,0.00019938,2]
[362465412,1748317840865,-510.68934127,0.00019943,2]
[362465413,1748317840874,-430.0,0.00019943,2]
[362465414,1748317840883,-150.0,0.00019961,2]
[362465415,1748317840892,-430.0,0.00020209,2]
[362465416,1748317840902,-437.08,0.0002021,2]
[362465417,1748317840912,-1232.65,0.0002021,2]
[362465418,1748317840921,-430.0,0.0002021,2]
[362465419,1748317840930,-430.0,0.0002021,2]
[362465420,1748317840939,-430.0,0.0002021,2]
[362465421,1748317840948,-430.0,0.0002021,2]
[362465422,1748317840957,-430.0,0.0002021,2]
[362465423,1748317840967,-693.34,0.0002021,2]
[362465424,1748317840976,-849.46,0.0002021,2]
[362465425,1748317840985,-439.20671052,0.00020211,2]
[362465426,1748317840995,-430.0,0.00020211,2]
[362465427,1748317841005,-530.18,0.00020211,2]
[362465428,1748317841014,-255.46,0.00020211,2]
[362465429,1748317841024,-430.0,0.00020211,2]
[362465430,1748317841033,-430.0,0.00020211,2]
[362465431,1748317841042,-167.39716575,0.00020211,2]
[362465432,1748317841052,-430.0,0.00020211,2]
[362465433,1748317841061,-430.0,0.00020211,2]
[362465434,1748317841070,-430.0,0.00020211,2]
[362465435,1748317841079,-430.0,0.00020211,2]
[362465436,1748317841093,-430.0,0.00020211,2]
[362465437,1748317841103,-540.75,0.00020211,2]
[362465438,1748317841112,-457.29,0.00020211,2]
[362465439,1748317841122,-430.0,0.00020211,2]
[362465440,1748317841134,-430.0,0.00020211,2]
[362465441,1748317841143,-430.0,0.00020211,2]
[362465442,1748317841152,-430.0,0.00020211,2]
[362465443,1748317841163,-430.0,0.00020211,2]
[362465444,1748317841171,-430.0,0.00020211,2]
[362465445,1748317841181,-430.0,0.00020211,2]
[362465446,1748317841190,-430.0,0.00020211,2]
[362465447,1748317841199,-430.0,0.00020211,2]
[362465448,1748317841209,-430.0,0.00020211,2]
[362465449,1748317841218,-430.0,0.00020211,2]
[362465450,1748317841227,-430.0,0.00020211,2]
[362465451,1748317841236,-430.0,0.00020211,2]
[362465452,1748317841245,-430.0,0.00020211,2]
[362465453,1748317841255,-430.0,0.00020211,2]
[362465454,1748317841265,-522.48,0.00020211,2]
[362465455,1748317841274,-430.0,0.00020212,2]
[362465456,1748317841283,-430.0,0.00020212,2]
[362465457,1748317841293,-430.0,0.00020212,2]
[362465458,1748317841302,-437.44467825,0.00020212,2]
[362465459,1748317841312,-430.06128798,0.00020212,2]
[362465460,1748317841322,-430.0,0.00020212,2]
[362465461,1748317841332,-419.02,0.00020212,2]
[362465462,1748317841341,-430.0,0.00020212,2]
[362465463,1748317841351,-430.0,0.00020212,2]
[362465464,1748317841362,-494.67514667,0.00020212,2]
[362465465,1748317841371,-430.0,0.00020212,2]
[362465466,1748317841380,-430.0,0.00020212,2]
[362465467,1748317841390,-430.0,0.00020212,2]
[362465468,1748317841399,-430.0,0.00020212,2]
[362465469,1748317841408,-430.0,0.00020212,2]
[362465470,1748317841418,-430.0,0.00020212,2]
[362465471,1748317841427,-430.0,0.00020212,2]
[362465472,1748317841437,-430.0,0.00020212,2]
[362465473,1748317841447,-430.0,0.00020212,2]
[362465474,1748317841456,-430.0,0.00020212,2]
[362465475,1748317841465,-430.0,0.00020212,2]
[362465476,1748317841475,-430.0,0.00020212,2]
[362465477,1748317841485,-304.72,0.00020212,2]
[362465478,1748317841494,-715.92,0.00020212,2]
[362465479,1748317841504,-449.37128976,0.00020217,2]
[362465480,1748317841513,-430.0,0.00020483,2]
[362465481,1748317841523,-1232.65,0.00020484,2]
[362465482,1748317841532,-430.0,0.00020484,2]
[362465483,1748317841541,-184.31,0.00020484,2]
[362465484,1748317841550,-430.0,0.00020484,2]
[362465485,1748317841559,-430.0,0.00020484,2]
[362465486,1748317841568,-430.0,0.00020484,2]
[362465487,1748317841578,-693.34,0.00020484,2]
[362465488,1748317841587,-849.46,0.00020484,2]
[362465489,1748317841596,-430.0,0.00020485,2]
[362465490,1748317841605,-430.0,0.00020485,2]
[362465491,1748317841614,-430.0,0.00020485,2]
[362465492,1748317841625,-430.0,0.00020485,2]
[362465493,1748317841634,-276.94,0.00020485,2]
[362465494,1748317841644,-430.0,0.00020485,2]
[362465495,1748317841655,-430.0,0.00020485,2]
[362465496,1748317841665,-430.0,0.00020485,2]
[362465497,1748317841674,-540.75,0.00020485,2]
[362465498,1748317841684,-457.29,0.00020485,2]
[362465499,1748317841694,-430.0,0.00020485,2]
[362465500,1748317841814,-430.0,0.00020485,2]
[362465501,1748317841826,-430.0,0.00020485,2]
[362465502,1748317841836,-236.04,0.00020485,2]
[362465503,1748317841845,-430.0,0.00020485,2]
[362465504,1748317841856,-430.0,0.00020485,2]
[362465505,1748317841867,-430.0,0.00020485,2]
[362465506,1748317841877,-430.0,0.00020485,2]
[362465507,1748317841887,-430.0,0.00020485,2]
[362465508,1748317841897,-430.0,0.00020485,2]
[362465509,1748317841907,-430.0,0.00020485,2]
[362465510,1748317841918,-430.0,0.00020485,2]
[362465511,1748317841927,-430.0,0.00020485,2]
[362465512,1748317841937,-469.55,0.00020485,2]
[362465513,1748317841947,-522.48,0.00020485,2]
[362465514,1748317841956,-430.0,0.00020486,2]
[362465515,1748317841966,-448.90913559,0.00020486,2]
[362465516,1748317841975,-430.0,0.00020486,2]
[362465517,1748317841984,-430.0,0.00020486,2]
[362465518,1748317841994,-430.0,0.00020486,2]
[362465519,1748317842003,-430.0,0.00020486,2]
[362465520,1748317842012,-430.0,0.00020486,2]
[362465521,1748317842021,-430.0,0.00020486,2]
[362465522,1748317842031,-430.0,0.00020486,2]
[362465523,1748317842040,-430.0,0.00020486,2]
[362465524,1748317842049,-430.0,0.00020486,2]
[362465525,1748317842059,-430.0,0.00020486,2]
[362465526,1748317842068,-482.6,0.00020486,2]
[362465527,1748317842077,-430.0,0.00020486,2]
[362465528,1748317842091,-166.42314775,0.00020486,2]
[362465529,1748317842100,-430.0,0.00020486,2]
[362465530,1748317842109,-430.0,0.00020486,2]
[362465531,1748317842118,-715.92,0.00020486,2]
[362465532,1748317842129,-181.219091,0.00020739,2]
[362465533,1748317842138,-321.57248144,0.00020757,2]
[362465534,1748317842147,-1232.65,0.00020758,2]
[362465535,1748317842157,-430.0,0.00020758,2]
[362465536,1748317842166,-430.0,0.00020758,2]
[362465537,1748317842176,-430.0,0.00020758,2]
[362465538,1748317842185,-430.0,0.00020758,2]
[362465539,1748317842194,-693.34,0.00020758,2]
[362465540,1748317842204,-849.46,0.00020758,2]
[362465541,1748317842214,-238.2,0.00020759,2]
[362465542,1748317842225,-430.0,0.00020759,2]
[362465543,1748317842234,-470.36,0.00020759,2]
[362465544,1748317842244,-430.0,0.00020759,2]
[362465545,1748317842253,-430.0,0.00020759,2]
[362465546,1748317842263,-430.0,0.00020759,2]
[362465547,1748317842274,-540.75,0.00020759,2]
[362465548,1748317842283,-457.29,0.00020759,2]
[362465549,1748317842294,-430.0,0.00020759,2]
[362465550,1748317842303,-430.0,0.00020759,2]
[362465551,1748317842313,-430.0,0.00020759,2]
[362465552,1748317842323,-430.0,0.00020759,2]
[362465553,1748317842333,-430.0,0.00020759,2]
[362465554,1748317842343,-430.0,0.00020759,2]
[362465555,1748317842352,-430.0,0.00020759,2]
[362465556,1748317842362,-430.0,0.00020759,2]
[362465557,1748317842371,-430.0,0.00020759,2]
[362465558,1748317842380,-430.0,0.00020759,2]
[362465559,1748317842390,-430.0,0.00020759,2]
[362465560,1748317842399,-522.48,0.00020759,2]
[362465561,1748317842408,-430.0,0.0002076,2]
[362465562,1748317842418,-430.0,0.0002076,2]
[362465563,1748317842427,-430.0,0.0002076,2]
[362465564,1748317842436,-430.0,0.0002076,2]
[362465565,1748317842446,-430.0,0.0002076,2]
[362465566,1748317842455,-430.0,0.0002076,2]
[362465567,1748317842465,-430.0,0.0002076,2]
[362465568,1748317842474,-430.0,0.0002076,2]
[362465569,1748317842483,-430.0,0.0002076,2]
[362465570,1748317842493,-430.0,0.0002076,2]
[362465571,1748317842502,-430.0,0.0002076,2]
[362465572,1748317842511,-430.0,0.0002076,2]
[362465573,1748317842521,-715.92,0.0002076,2]
[362465574,1748317842530,-206.28005541,0.000209,4]
[362465575,1748317842539,-1232.65,0.00021032,2]
[362465576,1748317842549,-430.0,0.00021032,2]
[362465577,1748317842558,-423.24,0.00021032,2]
[362465578,1748317842567,-430.0,0.00021032,2]
[362465579,1748317842577,-430.0,0.00021032,2]
[362465580,1748317842586,-693.34,0.00021032,2]
[362465581,1748317842595,-849.46,0.00021032,2]
[362465582,1748317842604,-430.0,0.00021033,2]
[362465583,1748317842614,-545.41310008,0.00021033,2]
[362465584,1748317842623,-540.75,0.00021033,2]
[362465585,1748317842632,-457.29,0.00021033,2]
[362465586,1748317842641,-562.73,0.00021033,2]
[362465587,1748317842650,-430.0,0.00021033,2]
[362465588,1748317842660,-430.0,0.00021033,2]
[362465589,1748317842671,-244.78,0.00021033,2]
[362465590,1748317842683,-430.0,0.00021033,2]
[362465591,1748317842692,-430.0,0.00021033,2]
[362465592,1748317842703,-430.0,0.00021033,2]
[362465593,1748317842712,-430.0,0.00021033,2]
[362465594,1748317842722,-430.0,0.00021033,2]
[362465595,1748317842733,-430.0,0.00021033,2]
[362465596,1748317842742,-522.48,0.00021033,2]
[362465597,1748317842752,-448.32827869,0.00021034,2]
[362465598,1748317842761,-430.0,0.00021034,2]
[362465599,1748317842771,-430.0,0.00021034,2]
[362465600,1748317842781,-430.0,0.00021034,2]
[362465601,1748317842792,-430.0,0.00021034,2]
[362465602,1748317842804,-430.0,0.00021034,2]
[362465603,1748317842814,-430.0,0.00021034,2]
[362465604,1748317842824,-430.0,0.00021034,2]
[362465606,1748317842833,-715.92,0.00021034,2]
[362465607,1748317842844,-162.664,0.00021092,2]
[362465608,1748317842853,-300.0,0.00021123,2]
[362465609,1748317842864,-500.0,0.00021163,2]
[362465610,1748317842873,-500.0,0.00021164,2]
[362465611,1748317842884,-1232.65,0.00021306,2]
[362465612,1748317842894,-430.0,0.00021306,2]
[362465613,1748317842904,-693.34,0.00021306,2]
[362465614,1748317842914,-849.46,0.00021306,2]
[362465615,1748317842923,-430.0,0.00021307,2]
[362465616,1748317842933,-540.75,0.00021307,2]
[362465618,1748317842943,-457.29,0.00021307,2]
[362465619,1748317842953,-164.31,0.00021307,2]
[362465620,1748317842963,-430.0,0.00021307,2]
[362465621,1748317842974,-418.35,0.00021307,2]
[362465622,1748317842984,-522.48,0.00021307,2]
[362465623,1748317842993,-430.0,0.00021308,2]
[362465624,1748317843002,-430.0,0.00021308,2]
[362465625,1748317843011,-430.0,0.00021308,2]
[362465626,1748317843021,-430.0,0.00021308,2]
[362465627,1748317843030,-430.0,0.00021308,2]
[362465628,1748317843040,-430.0,0.00021308,2]
[362465629,1748317843050,-715.92,0.00021308,2]
[362465630,1748317843059,-1232.65,0.0002158,2]
[362465631,1748317843069,-366.34,0.0002158,2]
[362465632,1748317843079,-693.34,0.0002158,2]
[362465633,1748317843092,-849.46,0.0002158,2]
[362465634,1748317843102,-430.0,0.00021581,2]
[362465635,1748317843112,-540.75,0.00021581,2]
[362465636,1748317843121,-457.29,0.00021581,2]
[362465638,1748317843131,-227.51169044,0.00021581,2]
[362465639,1748317843140,-522.48,0.00021581,2]
[362465640,1748317843149,-186.93473933,0.00021582,2]
[362465641,1748317843159,-430.0,0.00021582,2]
[362465642,1748317843170,-325.09,0.00021582,2]
[362465643,1748317843180,-430.0,0.00021582,2]
[362465644,1748317843190,-430.0,0.00021582,2]
[362465645,1748317843200,-430.0,0.00021582,2]
[362465647,1748317843210,-715.92,0.00021582,2]
[362465649,1748317843220,-206.28005536,0.000217,5]
[362465650,1748317843230,-1232.65,0.00021854,2]
[362465651,1748317843239,-693.34,0.00021854,2]
[362465652,1748317843250,-849.46,0.00021854,2]
[362465653,1748317843261,-430.0,0.00021855,2]
[362465654,1748317843271,-540.75,0.00021855,2]
[362465655,1748317843280,-457.29,0.00021855,2]
[362465656,1748317843290,-522.48,0.00021855,2]
[362465657,1748317843300,-333.65581489,0.00021856,2]
[362465658,1748317843309,-433.3229098,0.00021856,2]
[362465659,1748317843319,-405.17467467,0.00021856,2]
[362465660,1748317843329,-431.14281642,0.00021856,2]
[362465661,1748317843338,-408.21140038,0.00021856,2]
[362465662,1748317843347,-430.0,0.00021856,2]
[362465663,1748317843357,-430.0,0.00021856,2]
[362465664,1748317843367,-430.0,0.00021856,2]
[362465665,1748317843376,-430.0,0.00021856,2]
[362465666,1748317843385,-715.92,0.00021856,2]
[362465667,1748317843394,-1232.65,0.00022128,2]
[362465668,1748317843403,-693.34,0.00022128,2]
[362465669,1748317843412,-849.46,0.00022128,2]
[362465671,1748317843422,-430.0,0.00022129,2]
[362465673,1748317843431,-540.75,0.00022129,2]
[362465675,1748317843440,-457.29,0.00022129,2]
[362465676,1748317843450,-522.48,0.00022129,2]
[362465677,1748317843459,-430.0,0.0002213,2]
[362465678,1748317843468,-430.0,0.0002213,2]
[362465679,1748317843478,-430.0,0.0002213,2]
[362465680,1748317843487,-302.50276469,0.0002213,2]
[362465681,1748317843497,-715.92,0.0002213,2]
[362465682,1748317843506,-1232.65,0.00022402,2]
[362465683,1748317843515,-693.34,0.00022402,2]
[362465684,1748317843525,-849.46,0.00022402,2]
[362465685,1748317843535,-430.0,0.00022403,2]
[362465686,1748317843544,-540.75,0.00022403,2]
[362465687,1748317843553,-457.29,0.00022403,2]
[362465688,1748317843563,-522.48,0.00022403,2]
[362465689,1748317843573,-430.0,0.00022404,2]
[362465690,1748317843583,-430.0,0.00022404,2]
[362465691,1748317843593,-430.0,0.00022404,2]
[362465692,1748317843602,-715.92,0.00022404,2]
[362465693,1748317843612,-206.28005536,0.000225,7]
[362465694,1748317843622,-207.4,0.00022567,2]
[362465695,1748317843632,-1232.65,0.00022676,2]
[362465696,1748317843643,-693.34,0.00022676,2]
[362465697,1748317843652,-849.46,0.00022676,2]
[362465698,1748317843662,-430.0,0.00022677,2]
[362465699,1748317843673,-540.75,0.00022677,2]
[362465700,1748317843682,-457.29,0.00022677,2]
[362465701,1748317843692,-522.48,0.00022677,2]
[362465702,1748317843701,-430.0,0.00022678,2]
[362465703,1748317843711,-430.0,0.00022678,2]
[362465704,1748317843720,-500.0,0.00022678,2]
[362465705,1748317843729,-430.0,0.00022678,2]
[362465707,1748317843739,-715.92,0.00022678,2]
[362465709,1748317843749,-405.27609345,0.00022683,2]
[362465711,1748317843758,-430.0,0.00022683,2]
[362465712,1748317843768,-430.0,0.00022683,2]
[362465713,1748317843777,-1232.65,0.0002295,2]
[362465714,1748317843787,-693.34,0.0002295,2]
[362465715,1748317843796,-849.46,0.0002295,2]
[362465716,1748317843806,-430.0,0.00022951,2]
[362465717,1748317843931,-540.75,0.00022951,2]
[362465718,1748317843942,-457.29,0.00022951,2]
[362465719,1748317843952,-522.48,0.00022951,2]
[362465720,1748317843962,-430.0,0.00022952,2]
[362465721,1748317843972,-430.0,0.00022952,2]
[362465722,1748317843981,-430.0,0.00022952,2]
[362465723,1748317843990,-715.92,0.00022952,2]
[362465724,1748317844000,-500.0,0.00022953,2]
[362465725,1748317844011,-430.0,0.00022957,2]
[362465726,1748317844020,-181.82,0.00022957,2]
[362465727,1748317844030,-500.0,0.00022999,2]
[362465728,1748317844041,-14990.0,0.00023,3]
[362465729,1748317844052,-1232.65,0.00023224,2]
[362465730,1748317844062,-693.34,0.00023224,2]
[362465731,1748317844072,-849.46,0.00023224,2]
[362465732,1748317844082,-430.0,0.00023225,2]
[362465733,1748317844097,-540.75,0.00023225,2]
[362465734,1748317844107,-457.29,0.00023225,2]
[362465735,1748317844117,-522.48,0.00023225,2]
[362465736,1748317844127,-430.0,0.00023226,2]
[362465737,1748317844137,-383.91809989,0.00023226,2]
[362465738,1748317844147,-430.0,0.00023226,2]
[362465739,1748317844157,-715.92,0.00023226,2]
[362465740,1748317844167,-430.0,0.00023231,2]
[362465741,1748317844176,-206.28005536,0.000233,8]
[362465742,1748317844188,-500.0,0.00023356,2]
[362465743,1748317844199,-151.0,0.000234,7]
[362465744,1748317844209,-1232.65,0.00023498,2]
[362465745,1748317844219,-693.34,0.00023498,2]
[362465746,1748317844228,-849.46,0.00023498,2]
[362465747,1748317844238,-430.0,0.00023499,2]
[362465748,1748317844247,-540.75,0.00023499,2]
[362465749,1748317844258,-457.29,0.00023499,2]
[362465750,1748317844267,-522.48,0.00023499,2]
[362465751,1748317844277,-430.0,0.000235,2]
[362465752,1748317844286,-430.0,0.000235,2]
[362465753,1748317844297,-715.92,0.000235,2]
[362465754,1748317844307,-430.0,0.00023505,2]
[362465755,1748317844317,-500.0,0.00023519,2]
[362465756,1748317844328,-568.941196,0.0002352,3]
[362465757,1748317844339,-5000.0,0.00023585,2]
[362465758,1748317844349,-1232.65,0.00023772,2]
[362465759,1748317844358,-693.34,0.00023772,2]
[362465760,1748317844369,-849.46,0.00023772,2]
[362465761,1748317844378,-239.78,0.00023773,2]
[362465762,1748317844387,-540.75,0.00023773,2]
[362465763,1748317844398,-457.29,0.00023773,2]
[362465764,1748317844407,-522.48,0.00023773,2]
[362465765,1748317844417,-430.0,0.00023774,2]
[362465766,1748317844427,-430.0,0.00023774,2]
[362465767,1748317844437,-715.92,0.00023774,2]